fUST/lending_fUST_20260426
["ID","MTS","AMOUNT","RATE_DAILY","PERIOD"]
[421133487,1777133431857,-153.18,0.00010034,4]
[421133489,1777133431867,-4807.23776158,0.00010408,2]
[421133491,1777133431877,-191.54296013,0.00010513,2]
[421133493,1777133431886,-300.0,0.00010614,2]
[421133495,1777133431896,-300.0,0.00010615,2]
[421133497,1777133431904,-300.0,0.00010615,2]
[421133499,1777133431914,-300.0,0.00010615,2]
[421133501,1777133431923,-300.0,0.00010615,2]
[421133503,1777133431933,-300.0,0.00010615,2]
[421133504,1777133431942,-300.0,0.00010615,2]
[421133506,1777133431952,-300.0,0.00010615,2]
[421133508,1777133431961,-300.0,0.00010615,2]
[421133510,1777133431970,-25.07327829,0.00010615,2]
[421133567,1777133438083,-191.54296013,0.0001022,2]
[421133569,1777133438093,-274.92672171,0.00010615,2]
[421133571,1777133438103,-300.0,0.00010615,2]
[421133573,1777133438112,-300.0,0.00010615,2]
[421133575,1777133438122,-300.0,0.00010615,2]
[421133577,1777133438131,-300.0,0.00010615,2]
[421133579,1777133438141,-300.0,0.00010615,2]
[421133581,1777133438150,-300.0,0.00010615,2]
[421133583,1777133438159,-600.0,0.00010826,2]
[421133585,1777133438169,-720.0,0.00011909,2]
[421133587,1777133438178,-226.02069296,0.0001222,2]
[421133589,1777133438187,-3336.68057929,0.00012755,2]
[421133591,1777133438197,-185.0,0.00012782,2]
[421133593,1777133438206,-440.0,0.00012782,2]
[421133594,1777133438216,-160.0,0.00012847,2]
[421133596,1777133438226,-864.0,0.000131,2]
[421133598,1777133438235,-162.0,0.00013178,3]
[421133599,1777133438245,-258.76521461,0.00013598,3]
[421133600,1777133438254,-1000.0,0.00013699,2]
[421133601,1777133438264,-260.49842578,0.0001422,2]
[421133603,1777133438273,-195.0,0.00014274,3]
[421133604,1777133438282,-1000.0,0.0001441,2]
[421133605,1777133438292,-2652.9310125,0.00014986,2]
[421133606,1777133438302,-514.80683754,0.00014999,2]
[421133607,1777133438313,-6863.50550513,0.00015,2]
[421133608,1777133438322,-4310.6430333,0.00015085,2]
[421133609,1777133438333,-230.16469508,0.000151,2]
[421133610,1777133438342,-75745.09300537,0.0001513,2]
[421133611,1777133438371,-563.0,0.0001022,2]
[421133612,1777133438380,-209187.61406089,0.0001513,2]
[421133613,1777133438390,-1281.0,0.0001514,2]
[421133614,1777133438399,-798380.99841549,0.00015144,2]
[421133615,1777133438411,-869244.51804049,0.00015144,2]
[421133616,1777133438423,-7999.07002064,0.00015144,2]
[421133617,1777133438446,-5000.0,0.00015144,2]
[421133624,1777133440353,-15468.67238213,0.00015144,2]
[421133625,1777133440408,-78174.77187285,0.00015144,2]
[421133654,1777133446257,-2966.37331664,0.00015144,2]
[421133656,1777133446269,-756.85469116,0.00015144,2]
[421133657,1777133446529,-21759.451761,0.00015144,2]
[421133796,1777134638400,-1538.17840722,8.137e-05,2]
[421133797,1777134638459,-2069.13368468,8.137e-05,2]
[421133798,1777134638511,-534.0,8.137e-05,2]
[421133799,1777134638520,-185.01085935,8.219e-05,2]
[421133800,1777134638530,-500.0,8.219e-05,2]
[421133801,1777134638539,-218.31281404,0.00010219,2]
[421133802,1777134638548,-246.6124409,0.00012,2]
[421133803,1777134638557,-239.20468049,0.00012219,2]
[421133804,1777134638575,-12.41008823,0.00012219,2]
[421133805,1777134638584,-203.0,0.00013151,3]
[421133806,1777134638594,-209.89420279,0.00013332,2]
[421133807,1777134638602,-300.0,0.00013431,2]
[421133808,1777134638611,-1409.0,0.00013432,2]
[421133809,1777134638620,-653.39,0.00013432,2]
[421133810,1777134638630,-185.0,0.00013432,2]
[421133811,1777134638639,-441.0,0.00013432,2]
[421133812,1777134638648,-3143.77454548,0.00013539,2]
[421133813,1777134638658,-1000.0,0.00013699,2]
[421133814,1777134638668,-300.0,0.00013809,2]
[421133815,1777134638677,-300.0,0.00013809,2]
[421133816,1777134638686,-300.0,0.00013809,2]
[421133817,1777134638695,-300.0,0.00013809,2]
[421133818,1777134638704,-300.0,0.00013809,2]
[421133819,1777134638714,-300.0,0.00013809,2]
[421133820,1777134638723,-300.0,0.00013809,2]
[421133821,1777134638732,-300.0,0.00013809,2]
[421133822,1777134638742,-300.0,0.00013809,2]
[421133823,1777134638751,-300.0,0.00013809,2]
[421133824,1777134638760,-300.0,0.00013809,2]
[421133825,1777134638770,-300.0,0.00013809,2]
[421133826,1777134638779,-300.0,0.00013809,2]
[421133827,1777134638788,-300.0,0.00013809,2]
[421133828,1777134638798,-300.0,0.00013809,2]
[421133829,1777134638807,-284.9167234,0.00014219,2]
[421133830,1777134638816,-160.0,0.00014609,2]
[421133831,1777134638826,-246.6124409,0.00014696,14]
[421133832,1777134638835,-420.0,0.00014722,2]
[421133833,1777134638844,-174.0,0.00014795,3]
[421133834,1777134638854,-207.99882477,0.00014943,2]
[421133835,1777134638863,-500.19119294,0.00014943,2]
[421133836,1777134638872,-226.59286999,0.00014943,2]
[421133837,1777134638883,-515040.03261327,0.00014944,2]
[421133838,1777134638892,-500.0,0.00014999,2]
[421133839,1777134638901,-10153.25217919,0.00015,2]
[421133840,1777134638910,-179.311,0.00015043,2]
[421133841,1777134638920,-1281.0,0.0001505,2]
[421133842,1777134638929,-1799.8563079,0.0001512,2]
[421133843,1777134638938,-3062.535185,0.0001512,2]
[421133844,1777134638948,-153.1421057,0.0001512,2]
[421133845,1777134638957,-500.0,0.0001513,2]
[421133846,1777134638966,-500.0,0.0001513,2]
[421133847,1777134638975,-500.0,0.0001513,2]
[421133848,1777134638984,-500.0,0.0001513,2]
[421133849,1777134638993,-500.0,0.0001513,2]
[421133850,1777134639002,-500.0,0.0001513,2]
[421133851,1777134639012,-500.0,0.0001513,2]
[421133852,1777134639022,-500.0,0.0001513,2]
[421133853,1777134639031,-500.0,0.0001513,2]
[421133854,1777134639041,-500.0,0.0001513,2]
[421133855,1777134639050,-500.0,0.0001513,2]
[421133856,1777134639059,-500.0,0.0001513,2]
[421133857,1777134639069,-500.0,0.0001513,2]
[421133858,1777134639078,-500.0,0.0001513,2]
[421133859,1777134639087,-500.0,0.0001513,2]
[421133860,1777134639096,-500.0,0.00015143,2]
[421133861,1777134639105,-500.0,0.00015143,2]
[421133862,1777134639118,-500.0,0.00015143,2]
[421133863,1777134639128,-500.0,0.00015143,2]
[421133864,1777134639137,-525.39894773,0.00015143,2]
[421133865,1777134639146,-166.0,0.00015144,2]
[421133866,1777134639155,-649.0,0.00015144,2]
[421133867,1777134639163,-155.0,0.00015144,2]
[421133868,1777134639172,-649.0,0.00015144,2]
[421133869,1777134639181,-159.86712527,0.00015144,2]
[421133870,1777134639190,-166.0,0.00015144,2]
[421133871,1777134639199,-166.0,0.00015144,2]
[421133872,1777134639207,-272.61022012,0.00015144,2]
[421133873,1777134639216,-10153.25217919,0.000152,2]
[421133874,1777134639225,-394.17576579,0.000152,2]
[421133875,1777134639234,-394.17576576,0.000152,2]
[421133876,1777134639243,-394.17576576,0.000152,2]
[421133877,1777134639252,-4184.82077563,0.00015247,2]
[421133878,1777134639261,-600.0,0.00015299,2]
[421133879,1777134639270,-10153.25217919,0.000153,2]
[421133880,1777134639279,-1281.0,0.00015324,2]
[421133881,1777134639288,-277.41193959,0.00015404,2]
[421133882,1777134639297,-500.0,0.00015404,2]
[421133883,1777134639306,-10153.25217919,0.000155,2]
[421133884,1777134639315,-419.11660316,0.00015557,2]
[421133885,1777134639324,-1281.0,0.00015598,2]
[421133886,1777134639333,-10153.25217919,0.000156,2]
[421133887,1777134639342,-419.11660316,0.00015609,2]
[421133888,1777134639351,-419.11660316,0.0001566,2]
[421133889,1777134639360,-162.380719,0.00015676,2]
[421133890,1777134639369,-162.380719,0.00015676,2]
[421133891,1777134639378,-537.6845,0.00015676,2]
[421133892,1777134639387,-445.202766,0.00015676,2]
[421133893,1777134639396,-151.0,0.00015676,2]
[421133894,1777134639405,-537.6845,0.00015676,2]
[421133895,1777134639414,-151.0,0.00015676,2]
[421133896,1777134639423,-151.0,0.00015676,2]
[421133897,1777134639432,-151.0,0.00015676,2]
[421133898,1777134639441,-1957.856,0.00015676,2]
[421133899,1777134639451,-151.0,0.00015676,2]
[421133900,1777134639460,-151.0,0.00015676,2]
[421133901,1777134639469,-151.0,0.00015676,2]
[421133902,1777134639478,-151.0,0.00015676,2]
[421133903,1777134639488,-151.0,0.00015676,2]
[421133904,1777134639497,-151.0,0.00015676,2]
[421133905,1777134639506,-151.0,0.00015676,2]
[421133906,1777134639515,-151.0,0.00015676,2]
[421133907,1777134639524,-156.89658255,0.00015676,2]
[421133908,1777134639534,-151.0,0.00015676,2]
[421133909,1777134639544,-151.0,0.00015676,2]
[421133910,1777134639553,-151.0,0.00015676,2]
[421133911,1777134639562,-151.0,0.00015676,2]
[421133912,1777134639571,-151.0,0.00015676,2]
[421133913,1777134639580,-151.0,0.00015676,2]
[421133914,1777134639589,-151.0,0.00015676,2]
[421133915,1777134639598,-151.0,0.00015676,2]
[421133916,1777134639607,-151.0,0.00015676,2]
[421133917,1777134639616,-2150.738,0.00015676,2]
[421133918,1777134639625,-500.0,0.00015678,2]
[421133919,1777134639635,-419.11660316,0.00015712,2]
[421133920,1777134639644,-557.5788265,0.00015731,2]
[421133921,1777134639653,-2030.296672,0.00015731,2]
[421133922,1777134639663,-419.11660316,0.00015763,2]
[421133923,1777134639672,-3843.10676962,0.00015763,2]
[421133924,1777134639681,-578.20924308,0.00015786,2]
[421133925,1777134639689,-2105.41764886,0.00015786,2]
[421133926,1777134639698,-10153.25217919,0.000158,2]
[421133927,1777134639708,-599.60298507,0.00015841,2]
[421133928,1777134639717,-2183.31810187,0.00015841,2]
[421133929,1777134639727,-5000.0,0.00015847,2]
[421133930,1777134639736,-30000.0,0.00015863,2]
[421133931,1777134639745,-30000.0,0.00015863,2]
[421133932,1777134639754,-30000.0,0.00015863,2]
[421133933,1777134639763,-30000.0,0.00015863,2]
[421133935,1777134639773,-30000.0,0.00015863,2]
[421133937,1777134639782,-30000.0,0.00015863,2]
[421133939,1777134639791,-30000.0,0.00015863,7]
[421133942,1777134639800,-30000.0,0.00015863,7]
[421133943,1777134639810,-30000.0,0.00015863,7]
[421133944,1777134639820,-30000.0,0.00015863,7]
[421133945,1777134639829,-30000.0,0.00015863,7]
[421133946,1777134639839,-18116.120279,0.00015863,7]
[421133947,1777134639848,-1281.0,0.00015872,2]
[421133948,1777134639857,-621.78829552,0.00015896,2]
[421133949,1777134639866,-2264.10087164,0.00015896,2]
[421133950,1777134639875,-10153.25217919,0.000159,2]
[421133951,1777134639885,-644.79446246,0.00015951,2]
[421133952,1777134639894,-2347.87260389,0.00015951,2]
[421133953,1777134639903,-500.0,0.00015952,2]
[421133954,1777134639912,-38000.0,0.00015957,3]
[421133955,1777134639922,-38000.0,0.00015966,3]
[421133956,1777134639931,-29453.43911186,0.00015966,3]
[421133957,1777134639940,-150.0,0.00016,2]
[421133958,1777134639950,-500.0,0.00016,3]
[421133959,1777134639959,-500.80334759,0.00016,2]
[421133960,1777134639968,-668.65185757,0.00016006,2]
[421133961,1777134639977,-2434.74389024,0.00016006,2]
[421133962,1777134639986,-186.26247182,0.0001606,2]
[421133963,1777134639995,-697.05149269,0.00016061,2]
[421133964,1777134640005,-2524.82941417,0.00016061,2]
[421133965,1777134640014,-10153.25217919,0.000161,2]
[421133966,1777134640023,-589.85918531,0.00016116,2]
[421133967,1777134640033,-1281.0,0.00016146,2]
[421133968,1777134640042,-145421.67597708,0.0001617,2]
[421134007,1777134646870,-2321.31463599,0.00014899,2]
[421134008,1777134646880,-2321.31463593,0.0001561,2]
[421134009,1777134646890,-499.37116099,0.0001617,2]
[421134010,1777134646901,-494.293216,0.0001617,2]
[421134011,1777134646916,-5173.46939032,0.0001617,2]
[421134012,1777134646931,-1257.42635663,0.0001617,2]
[421134077,1777135838730,-161.41786289,0.0001188,2]
[421134078,1777135838740,-587.0,0.0001188,2]
[421134079,1777135838749,-174.27573969,0.0001194,2]
[421134080,1777135838759,-555.14790862,0.00012,2]
[421134081,1777135838770,-7261.41209138,0.00012,2]
[421134082,1777135838779,-226.0,0.00013096,3]
[421134083,1777135838789,-209.38658267,0.00013365,14]
[421134084,1777135838797,-300.0,0.00013696,2]
[421134085,1777135838806,-1000.0,0.00013699,2]
[421134086,1777135838815,-205.64537283,0.0001394,2]
[421134087,1777135838825,-300.0,0.00013972,2]
[421134088,1777135838834,-300.0,0.00013972,2]
[421134089,1777135838843,-300.0,0.00013972,2]
[421134090,1777135838852,-300.0,0.00013972,2]
[421134091,1777135838861,-300.0,0.00013972,2]
[421134092,1777135838871,-300.0,0.00013972,2]
[421134093,1777135838880,-300.0,0.00013972,2]
[421134094,1777135838889,-300.0,0.00013972,2]
[421134095,1777135838898,-300.0,0.00013972,2]
[421134096,1777135838908,-300.0,0.00013972,2]
[421134097,1777135838917,-300.0,0.00013972,2]
[421134098,1777135838927,-300.0,0.00013972,2]
[421134099,1777135838936,-300.0,0.00013972,2]
[421134100,1777135838945,-300.0,0.00013972,2]
[421134101,1777135838954,-300.0,0.00013972,2]
[421134102,1777135838963,-600.0,0.0001425,2]
[421134103,1777135838972,-209.91404124,0.00014285,2]
[421134104,1777135838982,-160.0,0.00014589,2]
[421134105,1777135838991,-455.6611417,0.00014906,2]
[421134106,1777135839000,-325.3168451,0.00014906,2]
[421134107,1777135839011,-3086.31320091,0.00014969,2]
[421134108,1777135839021,-500.50495496,0.00014999,2]
[421134109,1777135839030,-10068.04853208,0.00015,2]
[421134110,1777135839039,-174360.68457081,0.000151,2]
[421134111,1777135839051,-63167.54208981,0.000151,2]
[421134112,1777135839075,-1805.26752108,0.000151,2]
[421134113,1777135839093,-302.94724759,0.000151,2]
[421134127,1777135840882,-671.77936835,0.000151,2]
[421134128,1777135840938,-6085.88211101,0.000151,2]
[421134129,1777135840949,-703.674,0.000151,2]
[421134130,1777135840960,-6423.94677741,0.000151,2]
[421134219,1777135846789,-230.16469509,0.00015099,2]
[421134221,1777135846800,-74432.59725288,0.000151,2]
[421134223,1777135846809,-500.0,0.00015199,2]
[421134225,1777135846819,-10068.04853208,0.000152,2]
[421134227,1777135846828,-177.3790946,0.000152,2]
[421134229,1777135846838,-177.37909459,0.000152,2]
[421134231,1777135846847,-663.54806801,0.0001528,2]
[421134232,1777135846856,-2654.19227204,0.0001528,2]
[421134234,1777135846865,-5965.96067948,0.0001528,2]
[421134236,1777135846874,-200.0,0.00015288,3]
[421134238,1777135846884,-500.0,0.00015295,2]
[421134240,1777135846893,-500.0,0.00015298,2]
[421134242,1777135846903,-10068.04853208,0.000153,2]
[421134244,1777135846912,-500.0,0.00015499,2]
[421134246,1777135846922,-10068.04853208,0.000155,2]
[421134247,1777135846932,-1000.0,0.000155,2]
[421134249,1777135846941,-10068.04853208,0.000156,2]
[421134250,1777135846950,-720.0,0.00015675,2]
[421134252,1777135846960,-500.0,0.00015692,2]
[421134253,1777135846969,-500.0,0.00015699,2]
[421134255,1777135846978,-500.0,0.00015699,2]
[421134257,1777135846988,-500.0,0.00015699,2]
[421134258,1777135846997,-500.0,0.00015699,2]
[421134260,1777135847007,-500.0,0.00015699,2]
[421134262,1777135847017,-500.0,0.00015699,2]
[421134264,1777135847026,-500.0,0.00015699,2]
[421134265,1777135847036,-489.16912615,0.00015699,2]
[421134266,1777135847047,-10.83087385,0.00015699,2]
[421134267,1777135847056,-500.0,0.00015699,2]
[421134269,1777135847066,-500.0,0.00015699,2]
[421134271,1777135847075,-488.18271692,0.00015699,2]
[421134277,1777135847144,-11.81728308,0.00015699,2]
[421134279,1777135847153,-500.0,0.00015699,2]
[421134280,1777135847163,-500.0,0.00015699,2]
[421134282,1777135847172,-500.0,0.00015699,2]
[421134284,1777135847182,-52.01370309,0.00015699,2]
[421134288,1777135847251,-447.98629691,0.00015699,2]
[421134290,1777135847259,-500.0,0.00015699,2]
[421134291,1777135847269,-325.4528442,0.00015726,2]
[421134292,1777135847277,-151.0,0.00015726,2]
[421134293,1777135847286,-151.0,0.00015726,2]
[421134294,1777135847295,-325.424704,0.00015726,2]
[421134295,1777135847304,-455.8715388,0.00015726,2]
[421134296,1777135847312,-455.8715388,0.00015726,2]
[421134297,1777135847321,-151.0,0.00015726,2]
[421134298,1777135847330,-151.0,0.00015727,2]
[421134299,1777135847339,-691.32985871,0.000158,2]
[421134365,1777137031825,-158.10327877,0.00012,2]
[421134367,1777137031835,-166.67731744,0.00012125,2]
[421134369,1777137031845,-962.12323535,0.00013,2]
[421134371,1777137031856,-421.41676465,0.00013,2]
[421134373,1777137031866,-160.0,0.000136,2]
[421134375,1777137031875,-232.0,0.00013616,3]
[421134377,1777137031885,-1000.0,0.00013699,2]
[421134379,1777137031894,-196.67923457,0.00014125,2]
[421134381,1777137031903,-185.0,0.00014189,2]
[421134383,1777137031912,-219.28368899,0.00014262,2]
[421134385,1777137031921,-300.0,0.00014904,2]
[421134387,1777137031931,-300.0,0.00014904,2]
[421134389,1777137031942,-1200.0,0.00014904,2]
[421134391,1777137031951,-325.424704,0.00014904,2]
[421134393,1777137031960,-151.0,0.00014905,2]
[421134395,1777137031969,-455.6248431,0.00014905,2]
[421134397,1777137031978,-151.0,0.00014905,2]
[421134398,1777137031987,-327.9010347,0.00014905,2]
[421134400,1777137031996,-268.3332751,0.00014905,2]
[421134402,1777137032005,-4111.28440663,0.00015,2]
[421134463,1777137038032,-432.2486759,0.00014905,2]
[421134464,1777137038042,-71.632741,0.00015,2]
[421134465,1777137038284,-1582.87382059,0.00015,2]
[421134466,1777137038295,-636.0,0.00015,2]
[421134467,1777137038304,-500.0,0.00015018,2]
[421134468,1777137038314,-130.93217971,0.000151,2]
[421134470,1777137040174,-22.51095035,0.000151,2]
[421134471,1777137040184,-5157.58495147,0.000152,2]
[421134794,1777138243216,-878.91953977,0.00013159,2]
[421134799,1777138246747,-859.02714529,0.00013159,2]
[421134800,1777138246756,-607.0,0.00013159,2]
[421134801,1777138246765,-159.4101864,0.00013461,2]
[421134802,1777138246774,-1000.0,0.00013699,2]
[421134803,1777138246784,-151.0,0.00014083,2]
[421134804,1777138246793,-277.0,0.00014137,3]
[421134806,1777138246802,-255.8,0.0001445,2]
[421134807,1777138246811,-160.0,0.00014697,2]
[421134808,1777138246820,-455.9061778,0.00014907,2]
[421134809,1777138246829,-185.0,0.00014949,2]
[421134810,1777138246838,-3783.47778102,0.00015,2]
[421134940,1777139432334,-2092.94734764,0.0001188,2]
[421134942,1777139432343,-167.90974244,0.0001188,2]
[421134943,1777139432354,-419.09025756,0.0001188,2]
[421134945,1777139432363,-306.54578102,0.00012,2]
[421134946,1777139432372,-156.22198267,0.00012296,2]
[421134948,1777139432381,-1200.0,0.0001259,2]
[421134950,1777139432391,-300.0,0.00012591,2]
[421134952,1777139432400,-2079.12636014,0.00012592,2]
[421134987,1777139438711,-968.13929442,0.00012592,2]
[421135004,1777139447289,-1503.1981841,0.00012592,2]
[421135059,1777140632577,-300.0,0.00011848,2]
[421135061,1777140632586,-1200.0,0.00011848,2]
[421135063,1777140632595,-5000.0,0.00011849,2]
[421135065,1777140632604,-587.0,0.00011849,2]
[421135067,1777140632613,-157.17754301,0.0001197,2]
[421135070,1777140632621,-1225.19057591,0.00012592,2]
[421135093,1777140638880,-5661.58779623,0.00012592,2]
[421135094,1777140638986,-2907.57697131,0.00012592,2]
[421135095,1777140638996,-300.0,0.00012843,2]
[421135096,1777140639006,-300.0,0.00012843,2]
[421135097,1777140639015,-300.0,0.00012843,2]
[421135098,1777140639024,-300.0,0.00012843,2]
[421135099,1777140639034,-300.0,0.00012843,2]
[421135100,1777140639043,-300.0,0.00012843,2]
[421135101,1777140639052,-300.0,0.00012843,2]
[421135102,1777140639062,-300.0,0.00012843,2]
[421135103,1777140639071,-300.0,0.00012843,2]
[421135104,1777140639080,-300.0,0.00012843,2]
[421135105,1777140639090,-300.0,0.00012843,2]
[421135106,1777140639099,-300.0,0.00012843,2]
[421135107,1777140639108,-300.0,0.00012843,2]
[421135108,1777140639118,-300.0,0.00012843,2]
[421135109,1777140639126,-300.0,0.00012843,2]
[421135110,1777140639136,-420.0,0.00013008,2]
[421135111,1777140639145,-480.0,0.00013033,2]
[421135112,1777140639155,-207.0,0.00013041,3]
[421135113,1777140639164,-600.0,0.00013099,2]
[421135114,1777140639173,-392.67618831,0.00013233,14]
[421135115,1777140639182,-152.0,0.00013533,7]
[421135116,1777140639191,-152.0,0.00013533,7]
[421135117,1777140639201,-1000.0,0.00013699,2]
[421135118,1777140639210,-185.46950076,0.0001397,2]
[421135119,1777140639220,-184.7296923,0.00014044,2]
[421135120,1777140639229,-1648.7199414,0.00014044,2]
[421135121,1777140639238,-152.4746486,0.00014044,2]
[421135122,1777140639248,-457.4669082,0.00014076,2]
[421135123,1777140639257,-151.9111254,0.00014076,2]
[421135124,1777140639266,-325.4528442,0.00014076,2]
[421135125,1777140639275,-160.0,0.00014338,2]
[421135126,1777140639284,-720.0,0.00014409,2]
[421135127,1777140639294,-500.0,0.00014495,2]
[421135128,1777140639303,-939.87022297,0.00014596,2]
[421135129,1777140639312,-152.0,0.00014597,7]
[421135130,1777140639322,-152.0,0.00014597,7]
[421135131,1777140639331,-151.5,0.00014726,2]
[421135132,1777140639341,-155.51920943,0.00014726,2]
[421135133,1777140639350,-151.5,0.00014726,2]
[421135134,1777140639360,-220.22268346,0.00014726,2]
[421135135,1777140639370,-152.03555045,0.00014726,2]
[421135136,1777140639379,-500.0,0.00014769,2]
[421135137,1777140639388,-1000.0,0.00014853,2]
[421135138,1777140639590,-2000.0,0.00015,2]
[421135139,1777140639600,-4917.49976959,0.00015,2]
[421135140,1777140639610,-536.01654834,0.00015043,2]
[421135141,1777140639619,-291.67954941,0.00015044,2]
[421135142,1777140639629,-500.0,0.00015194,2]
[421135143,1777140639638,-537.6845,0.00015197,2]
[421135144,1777140639648,-130.35723051,0.00015197,2]
[421135145,1777140639660,-314.84553549,0.00015197,2]
[421135146,1777140639669,-162.380719,0.00015197,2]
[421135147,1777140639679,-162.380719,0.00015197,2]
[421135148,1777140639689,-537.6845,0.00015197,2]
[421135149,1777140639698,-151.0,0.00015197,2]
[421135150,1777140639707,-165.8074548,0.00015197,2]
[421135151,1777140639717,-2150.738,0.00015197,2]
[421135152,1777140639726,-543.52201018,0.000152,60]
[421135153,1777140639736,-4917.49976959,0.000152,2]
[421135154,1777140639746,-500.0,0.000152,2]
[421135155,1777140639755,-1592.82535139,0.0001522,2]
[421135156,1777140639770,-1220.72189506,0.0001522,2]
[421135157,1777140639779,-423.70254849,0.00015252,2]
[421135158,1777140639791,-133.87627801,0.00015252,2]
[421135159,1777140639800,-571.84988445,0.00015292,2]
[421135160,1777140639810,-198.74541211,0.000153,2]
[421135161,1777140639821,-4718.75435748,0.000153,2]
[421135162,1777140639831,-187.70293466,0.00015428,2]
[421135163,1777140639840,-1196.73226949,0.0001543,21]
[421135164,1777140639849,-4917.49976959,0.000155,2]
[421135165,1777140639859,-185.0,0.00015528,2]
[421135166,1777140639868,-4917.49976959,0.000156,2]
[421135167,1777140639877,-291.67954939,0.00015655,2]
[421135168,1777140639887,-168.3888056,0.00015745,2]
[421135169,1777140639896,-461.67526834,0.00015745,2]
[421135170,1777140639905,-557.5788265,0.00015745,2]
[421135171,1777140639915,-151.0,0.00015745,2]
[421135172,1777140639924,-2230.315306,0.00015745,2]
[421135173,1777140639933,-4917.49976959,0.000158,2]
[421135174,1777140639942,-796.0,0.000158,2]
[421135175,1777140639951,-292.75039468,0.000158,2]
[421135176,1777140639961,-306.54578102,0.00015843,14]
[421135177,1777140639971,-864.0,0.0001585,2]
[421135178,1777140639980,-179.311,0.00015872,2]
[421135179,1777140639989,-4917.49976959,0.000159,2]
[421135180,1777140639999,-158.10327877,0.00015927,14]
[421135181,1777140640009,-213.7614585,0.0001597,2]
[421135182,1777140640018,-4917.49976959,0.000161,2]
[421135183,1777140640028,-438.93,0.000161,2]
[421135184,1777140640037,-187.70293465,0.00016164,2]
[421135185,1777140640046,-500.0,0.0001617,2]
[421135186,1777140640055,-500.0,0.0001617,2]
[421135187,1777140640065,-4917.49976959,0.000162,2]
[421135188,1777140640074,-478.75725327,0.00016293,2]
[421135189,1777140640083,-174.61919141,0.00016293,2]
[421135190,1777140640092,-151.0,0.00016293,2]
[421135191,1777140640102,-578.20924308,0.00016293,2]
[421135192,1777140640111,-175.16758887,0.00016293,2]
[421135196,1777140641320,-1071.84988445,0.00016293,2]
[421135197,1777140641335,-1065.819499,0.00016293,2]
[421135198,1777140641344,-180.0,0.00016329,3]
[421135199,1777140641354,-5564.28131807,0.0001639,2]
[421135244,1777140643753,-1021.47584788,0.0001639,2]
[421135247,1777140643859,-479.87346271,0.0001639,2]
[421135256,1777140646985,-7700.0,0.0001639,2]
[421135257,1777140647194,-1000.0,0.00016,2]
[421135258,1777140647204,-2083.2,0.0001639,2]
[421135259,1777140647248,-304.7,0.0001639,2]
[421135332,1777141831999,-208.61244762,0.00012399,2]
[421135334,1777141832012,-595.0,0.00012399,2]
[421135336,1777141832021,-150.12937297,0.00012609,2]
[421135338,1777141832030,-158.0,0.00012986,3]
[421135340,1777141832039,-251.35944321,0.0001309,2]
[421135427,1777141838344,-2009.11182805,0.0001309,2]
[421135428,1777141838353,-200.0,0.00013587,2]
[421135429,1777141838363,-200.85,0.00013587,7]
[421135430,1777141838373,-1000.0,0.00013699,2]
[421135431,1777141838382,-860.13001362,0.00013798,2]
[421135432,1777141838431,-10447.61785341,0.00013798,2]
[421135433,1777141838441,-160.0,0.00014263,2]
[421135434,1777141838450,-177.1526601,0.00014609,2]
[421135435,1777141838459,-7.37070569,0.0001484,2]
[421135449,1777141846636,-292.62929431,0.0001484,2]
[421135450,1777141846646,-8460.66563659,0.00014841,2]
[421135451,1777141846656,-161.0,0.00014945,2]
[421135452,1777141846666,-983.49995392,0.00015,2]
[421135453,1777141846675,-537.6845,0.0001514,2]